fUSD/lending_fUSD_20251110
["ID","MTS","AMOUNT","RATE_DAILY","PERIOD"]
[393505492,1762739345071,2119.09,0.0003927,120]
[393505493,1762739345122,591.4,0.0003927,60]
[393505494,1762739345174,831.78,0.0003927,120]
[393505496,1762739345221,591.4,0.0003927,60]
[393505497,1762739345273,2119.09,0.0003927,120]
[393505498,1762739345387,831.78,0.0003927,120]
[393505499,1762739345437,591.4,0.0003927,60]
[393505500,1762739345485,2119.09,0.0003927,120]
[393505501,1762739345631,831.78,0.0003927,120]
[393505502,1762739345705,591.40387879,0.0003927,60]
[393505503,1762739345757,2119.09,0.0003927,120]
[393505504,1762739345958,831.78,0.0003927,120]
[393505505,1762739346011,2119.09,0.0003927,120]
[393505506,1762739346229,2119.09,0.0003927,120]
[393505507,1762739346277,831.78,0.0003927,120]
[393505508,1762739346464,2119.09,0.0003927,120]
[393505509,1762739346518,831.78,0.0003927,120]
[393505510,1762739346745,2119.09,0.0003927,120]
[393505511,1762739346794,831.78,0.0003927,120]
[393505512,1762739346991,831.78,0.0003927,120]
[393505513,1762739347043,2119.09,0.0003927,120]
[393505514,1762739347266,831.78,0.0003927,120]
[393505515,1762739347319,2119.09,0.0003927,120]
[393505516,1762739347371,694.82,0.0003927,120]
[393505517,1762739347503,831.78,0.0003927,120]
[393505518,1762739347557,2119.09,0.0003927,120]
[393505519,1762739347622,694.82,0.0003927,120]
[393505520,1762739347736,2119.09,0.0003927,120]
[393505521,1762739347787,831.78,0.0003927,120]
[393505522,1762739347846,694.82,0.0003927,120]
[393505523,1762739347993,831.78,0.0003927,120]
[393505524,1762739348046,2119.28652847,0.0003927,120]
[393505525,1762739348100,694.82,0.0003927,120]
[393505526,1762739348236,831.78,0.0003927,120]
[393505527,1762739348307,694.82,0.0003927,120]
[393505528,1762739348496,831.78,0.0003927,120]
[393505529,1762739348548,694.82,0.0003927,120]
[393505530,1762739348765,831.78,0.0003927,120]
[393505531,1762739348845,694.82,0.0003927,120]
[393505532,1762739349084,694.82,0.0003927,120]
[393505533,1762739349349,831.78,0.0003927,120]
[393505534,1762739349400,694.82,0.0003927,120]
[393505535,1762739349626,831.78,0.0003927,120]
[393505536,1762739349679,694.82,0.0003927,120]
[393505538,1762739349868,694.82,0.0003927,120]
[393505539,1762739349919,831.78,0.0003927,120]
[393505541,1762739350106,831.82444946,0.0003927,120]
[393505542,1762739350155,694.82,0.0003927,120]
[393505543,1762739350349,694.82,0.0003927,120]
[393505544,1762739350586,694.82,0.0003927,120]
[393505545,1762739350830,694.82,0.0003927,120]
[393505546,1762739351218,694.82,0.0003927,120]
[393505547,1762739351367,694.82,0.0003927,120]
[393505548,1762739351423,500.0,0.0003927,120]
[393505549,1762739351615,694.82,0.0003927,120]
[393505550,1762739352059,500.0,0.0003927,120]
[393505551,1762739352204,694.82,0.0003927,120]
[393505552,1762739352290,500.0,0.0003927,120]
[393505553,1762739352488,694.82,0.0003927,120]
[393505554,1762739352542,500.0,0.0003927,120]
[393505555,1762739352750,694.82,0.0003927,120]
[393505556,1762739352799,500.0,0.0003927,120]
[393505557,1762739353026,694.82,0.0003927,120]
[393505558,1762739353081,585.20057539,0.0003927,120]
[393505559,1762739353283,694.82,0.0003927,120]
[393505561,1762739353523,694.8386968,0.0003927,120]
[393505564,1762739356559,500.0,0.0003927,120]
[393505565,1762739356791,500.0,0.0003927,120]
[393505566,1762739357027,500.0,0.0003927,120]
[393505567,1762739357306,500.0,0.0003927,120]
[393505568,1762739357575,500.0,0.0003927,120]
[393505569,1762739357842,500.0,0.0003927,120]
[393505570,1762739358089,500.0,0.0003927,120]
[393505571,1762739358349,500.0,0.0003927,120]
[393505573,1762739358609,500.0,0.0003927,120]
[393505575,1762739358849,500.0,0.0003927,120]
[393505577,1762739359111,500.0,0.0003927,120]
[393505579,1762739359361,500.0,0.0003927,120]
[393505582,1762739359595,500.0,0.0003927,120]
[393505584,1762739359987,500.0,0.0003927,120]
[393505585,1762739360098,500.0,0.0003927,120]
[393505587,1762739360345,500.0,0.0003927,120]
[393505588,1762739360583,500.0,0.0003927,120]
[393505589,1762739360823,500.0,0.0003927,120]
[393505591,1762739361057,500.0,0.0003927,120]
[393505594,1762739361420,328.47532362,0.0003927,120]
[393505602,1762739363467,1121.44,0.0003927,120]
[393505603,1762739363701,1121.44,0.0003927,120]
[393505604,1762739363935,1121.44,0.0003927,120]
[393505605,1762739364243,1121.44,0.0003927,120]
[393505606,1762739364477,1121.44,0.0003927,120]
[393505607,1762739364727,1121.44,0.0003927,120]
[393505610,1762739364975,1121.44,0.0003927,120]
[393505612,1762739365223,1121.44,0.0003927,120]
[393505614,1762739365465,1121.44,0.0003927,120]
[393505615,1762739365710,1121.44,0.0003927,120]
[393505616,1762739365966,1121.44,0.0003927,120]
[393505617,1762739366214,1121.44,0.0003927,120]
[393505618,1762739366460,1121.44,0.0003927,120]
[393505619,1762739366508,502.41008923,0.0003927,120]
[393505620,1762739366717,1121.44,0.0003927,120]
[393505621,1762739366985,1121.44,0.0003927,120]
[393505622,1762739367247,1121.44,0.0003927,120]
[393505623,1762739367489,1121.44,0.0003927,120]
[393505624,1762739367721,1121.44,0.0003927,120]
[393505625,1762739367946,1121.44,0.0003927,120]
[393505626,1762739368177,1121.44,0.0003927,120]
[393505628,1762739368243,547.48405317,0.0003927,120]
[393505629,1762739368515,1121.44,0.0003927,120]
[393505630,1762739368755,1121.44,0.0003927,120]
[393505631,1762739368984,1121.44,0.0003927,120]
[393505632,1762739369222,1121.45632374,0.0003927,120]
[393505633,1762739370474,500.0,0.0003927,120]
[393505634,1762739370748,500.0,0.0003927,120]
[393505635,1762739370986,500.0,0.0003927,120]
[393505636,1762739371238,500.0,0.0003927,120]
[393505637,1762739371556,500.0,0.0003927,120]
[393505638,1762739371713,500.0,0.0003927,120]
[393505640,1762739371946,500.0,0.0003927,120]
[393505641,1762739372180,500.0,0.0003927,120]
[393505642,1762739372418,500.0,0.0003927,120]
[393505643,1762739372657,500.0,0.0003927,120]
[393505644,1762739372920,392.29629365,0.0003927,120]
[393505646,1762739375202,627.41344406,0.0003927,120]
[393505647,1762739377139,500.0,0.0003927,120]
[393505648,1762739377384,500.0,0.0003927,120]
[393505649,1762739377629,500.0,0.0003927,120]
[393505650,1762739377872,500.0,0.0003927,120]
[393505651,1762739378108,500.0,0.0003927,120]
[393505653,1762739378374,500.0,0.0003927,120]
[393505655,1762739378634,500.0,0.0003927,120]
[393505656,1762739378862,500.0,0.0003927,120]
[393505657,1762739379097,500.0,0.0003927,120]
[393505658,1762739379559,500.0,0.0003927,120]
[393505659,1762739379616,500.0,0.0003927,120]
[393505661,1762739379882,500.0,0.0003927,120]
[393505662,1762739380017,220.25703841,0.0003927,120]
[393505663,1762739380145,500.0,0.0003927,120]
[393505665,1762739380418,500.0,0.0003927,120]
[393505666,1762739380660,500.0,0.0003927,120]
[393505667,1762739380928,500.0,0.0003927,120]
[393505668,1762739381179,500.0,0.0003927,120]
[393505669,1762739381448,500.0,0.0003927,120]
[393505670,1762739381786,488.59133729,0.0003927,120]
[393505671,1762739381876,506.16,0.0003927,120]
[393505672,1762739382125,506.16,0.0003927,120]
[393505673,1762739382369,506.16,0.0003927,120]
[393505674,1762739382605,506.16,0.0003927,120]
[393505675,1762739382851,506.16,0.0003927,120]
[393505677,1762739383083,506.16,0.0003927,120]
[393505679,1762739383344,506.16,0.0003927,120]
[393505681,1762739383593,506.16,0.0003927,120]
[393505683,1762739383841,506.16,0.0003927,120]
[393505685,1762739384082,506.16,0.0003927,120]
[393505687,1762739384350,506.16,0.0003927,120]
[393505689,1762739384603,506.16,0.0003927,120]
[393505690,1762739384855,506.16,0.0003927,120]
[393505691,1762739385617,506.16,0.0003927,120]
[393505692,1762739385892,506.16,0.0003927,120]
[393505693,1762739386133,506.16,0.0003927,120]
[393505694,1762739386220,859.69,0.0003927,120]
[393505696,1762739386437,506.16,0.0003927,120]
[393505697,1762739386490,859.69,0.0003927,120]
[393505699,1762739386687,506.16,0.0003927,120]
[393505700,1762739386743,859.69,0.0003927,120]
[393505702,1762739386940,506.16,0.0003927,120]
[393505703,1762739386987,859.69,0.0003927,120]
[393505704,1762739387230,506.16,0.0003927,120]
[393505705,1762739387278,859.69,0.0003927,120]
[393505706,1762739387466,506.16,0.0003927,120]
[393505707,1762739387622,859.69,0.0003927,120]
[393505708,1762739387713,506.16,0.0003927,120]
[393505709,1762739387871,859.69,0.0003927,120]
[393505710,1762739387949,506.16,0.0003927,120]
[393505712,1762739388125,859.69,0.0003927,120]
[393505713,1762739388193,506.21975178,0.0003927,120]
[393505715,1762739388461,859.69,0.0003927,120]
[393505717,1762739388719,859.69,0.0003927,120]
[393505720,1762739388970,859.69,0.0003927,120]
[393505722,1762739389231,859.69,0.0003927,120]
[393505726,1762739389483,859.69,0.0003927,120]
[393505728,1762739389728,859.69,0.0003927,120]
[393505730,1762739389972,859.69,0.0003927,120]
[393505733,1762739390210,859.69,0.0003927,120]
[393505737,1762739390619,859.69,0.0003927,120]
[393505738,1762739390840,859.69,0.0003927,120]
[393505739,1762739391416,859.69,0.0003927,120]
[393505741,1762739391643,859.69,0.0003927,120]
[393505742,1762739391983,859.69,0.0003927,120]
[393505743,1762739392116,859.69,0.0003927,120]
[393505744,1762739392358,859.69,0.0003927,120]
[393505745,1762739392596,859.76802577,0.0003927,120]
[393505746,1762739393195,1764.37,0.0003927,120]
[393505747,1762739393439,1764.37,0.0003927,120]
[393505748,1762739393675,1764.37,0.0003927,120]
[393505750,1762739393933,1764.37,0.0003927,120]
[393505752,1762739394202,1764.37,0.0003927,120]
[393505754,1762739394460,1764.37,0.0003927,120]
[393505755,1762739394518,637.35091702,0.0003927,120]
[393505756,1762739394720,1764.37,0.0003927,120]
[393505757,1762739394889,500.0,0.0003927,120]
[393505759,1762739395108,1764.37,0.0003927,120]
[393505760,1762739395157,215.9036044,0.0003927,120]
[393505762,1762739395358,1764.37,0.0003927,120]
[393505765,1762739395786,1764.37,0.0003927,120]
[393505768,1762739396020,1764.37,0.0003927,120]
[393505771,1762739396471,1764.37,0.0003927,120]
[393505774,1762739396706,1764.37,0.0003927,120]
[393505777,1762739396942,1764.37,0.0003927,120]
[393505782,1762739397199,1764.37,0.0003927,120]
[393505785,1762739397428,1764.37,0.0003927,120]
[393505790,1762739397830,1764.37,0.0003927,120]
[393505793,1762739398088,1764.37,0.0003927,120]
[393505796,1762739398345,1764.37,0.0003927,120]
[393505801,1762739398756,1764.37,0.0003927,120]
[393505802,1762739398804,1764.37,0.0003927,120]
[393505805,1762739399043,1764.37,0.0003927,120]
[393505808,1762739399271,1764.37,0.0003927,120]
[393505811,1762739399506,1764.42838692,0.0003927,120]
[393505820,1762739400931,421.13255429,0.0003927,120]
[393505821,1762739402627,597.84738392,0.0003927,120]
[393505822,1762739405069,500.0,0.0003927,120]
[393505823,1762739405479,500.0,0.0003927,120]
[393505824,1762739405656,500.0,0.0003927,120]
[393505825,1762739405757,500.0,0.0003927,120]
[393505826,1762739405880,500.0,0.0003927,120]
[393505827,1762739405936,585.92723718,0.0003927,120]
[393505828,1762739405986,500.0,0.0003927,120]
[393505829,1762739406108,500.0,0.0003927,120]
[393505831,1762739406233,500.0,0.0003927,120]
[393505832,1762739406466,500.0,0.0003927,120]
[393505833,1762739406696,500.0,0.0003927,120]
[393505834,1762739406750,1258.46,0.0003927,120]
[393505835,1762739406963,500.00611378,0.0003927,120]
[393505836,1762739407018,1258.46,0.0003927,120]
[393505837,1762739407248,1258.46,0.0003927,120]
[393505838,1762739407490,1258.46,0.0003927,120]
[393505839,1762739407734,1258.46,0.0003927,120]
[393505841,1762739407967,1258.46,0.0003927,120]
[393505842,1762739408194,1258.46,0.0003927,120]
[393505845,1762739408430,1258.46,0.0003927,120]
[393505846,1762739408672,1258.46,0.0003927,120]
[393505847,1762739408912,1258.46,0.0003927,120]
[393505849,1762739409159,1258.46,0.0003927,120]
[393505851,1762739409392,1258.46,0.0003927,120]
[393505852,1762739409620,1258.46,0.0003927,120]
[393505853,1762739409857,1258.46,0.0003927,120]
[393505854,1762739410098,1258.46,0.0003927,120]
[393505855,1762739410375,1258.46,0.0003927,120]
[393505856,1762739410625,1258.46,0.0003927,120]
[393505857,1762739410823,205.93,0.00013699,2]
[393505858,1762739410879,1258.46,0.0003927,120]
[393505859,1762739411089,1258.46,0.0003927,120]
[393505860,1762739411600,1258.46,0.0003927,120]
[393505861,1762739411830,1258.46,0.0003927,120]
[393505862,1762739412060,1258.46,0.0003927,120]
[393505864,1762739412315,1258.46,0.0003927,120]
[393505867,1762739412550,1258.62,0.0003927,120]
[393505868,1762739413712,155.619826,0.0003927,120]
[393505869,1762739415019,500.0,0.0003927,120]
[393505870,1762739415300,500.0,0.0003927,120]
[393505871,1762739415553,500.0,0.0003927,120]
[393505873,1762739415823,500.0,0.0003927,120]
[393505875,1762739416068,500.0,0.0003927,120]
[393505877,1762739416327,500.0,0.0003927,120]
[393505879,1762739416563,500.0,0.0003927,120]
[393505881,1762739416802,500.0,0.0003927,120]
[393505883,1762739417054,500.0,0.0003927,120]
[393505885,1762739417454,500.0,0.0003927,120]
[393505887,1762739417522,500.0,0.0003927,120]
[393505889,1762739417764,500.0,0.0003927,120]
[393505891,1762739417999,500.0,0.0003927,120]
[393505893,1762739418227,500.0,0.0003927,120]
[393505894,1762739418470,500.0,0.0003927,120]
[393505896,1762739418739,500.0,0.0003927,120]
[393505898,1762739418961,500.0,0.0003927,120]
[393505900,1762739419191,500.0,0.0003927,120]
[393505902,1762739419431,500.0,0.0003927,120]
[393505903,1762739419660,500.0,0.0003927,120]
[393505904,1762739419902,500.0,0.0003927,120]
[393505905,1762739420138,500.0,0.0003927,120]
[393505906,1762739420378,500.0,0.0003927,120]
[393505907,1762739420613,291.02547026,0.0003927,120]
[393505922,1762739424038,500.0,0.0003927,120]
[393505924,1762739424302,166.96403688,0.0003927,120]
[393505927,1762739424587,550.7332593,0.0003927,120]
[393505931,1762739425440,174.3485,0.0003927,60]
[393505933,1762739425572,278.80787,0.0003927,60]
[393505937,1762739430283,500.0,0.0003927,120]
[393505938,1762739430521,153.745249,0.0003927,120]
[393505958,1762739432271,-205.93,0.00020187,2]
[393505960,1762739432282,-205.93,0.00026676,2]
[393505961,1762739432292,-478.20968403,0.00028675,2]
[393505962,1762739432301,-255.4270297,0.00028996,2]
[393505963,1762739432311,-5004.03005572,0.00029096,2]
[393505964,1762739432321,-5000.0,0.00029096,2]
[393505965,1762739432331,-5000.0,0.00029096,2]
[393505966,1762739432341,-5000.0,0.00029096,2]
[393505967,1762739432351,-5000.0,0.00029096,2]
[393505968,1762739432361,-5000.0,0.00029096,2]
[393505970,1762739432372,-250.0,0.00031748,2]
[393505971,1762739432382,-205.93,0.00033165,2]
[393505972,1762739432392,-191.84,0.00035429,30]
[393505973,1762739432402,-1230.0,0.00036096,3]
[393505974,1762739432412,-300.0,0.00036097,3]
[393505975,1762739432421,-400.0,0.00036097,2]
[393505976,1762739432431,-12502.93,0.00036098,2]
[393505977,1762739432441,-2500.09,0.00036106,2]
[393505978,1762739432451,-497.368,0.00036106,44]
[393505979,1762739432461,-535.11,0.00036106,2]
[393505980,1762739432471,-3182.20523055,0.00036232,2]
[393505981,1762739432488,-19604.49048966,0.00036232,2]
[393505982,1762739432500,-2213.30427979,0.00036232,2]
[393505983,1762739432510,-2500.16,0.00036344,2]
[393505984,1762739432520,-1023.95621657,0.00036429,5]
[393505985,1762739432530,-25000.0,0.00036505,2]
[393505986,1762739432539,-159.65,0.00036527,60]
[393505987,1762739432549,-159.66305774,0.00036627,60]
[393505988,1762739432559,-2500.1,0.00036747,2]
[393505989,1762739432570,-820.08,0.00036757,30]
[393505990,1762739432579,-12502.93,0.00036799,2]
[393505991,1762739432589,-170.46,0.00036861,120]
[393505992,1762739432599,-342.42,0.00036862,30]
[393505993,1762739432608,-2500.65,0.00036877,2]
[393505994,1762739432618,-999.0,0.000369,3]
[393505995,1762739432627,-2500.65,0.00036937,2]
[393505996,1762739432636,-906.956,0.00036948,2]
[393505997,1762739432645,-2500.15,0.00036971,2]
[393505998,1762739432655,-655.65,0.00036988,2]
[393505999,1762739432664,-153.0,0.00037164,2]
[393506000,1762739432675,-173.86593963,0.000372,120]
[393506001,1762739432685,-182.5,0.00037225,2]
[393506002,1762739432694,-200.0,0.00037298,2]
[393506003,1762739432704,-250.0,0.00037585,2]
[393506005,1762739432713,-167.76,0.0003784,2]
[393506007,1762739432723,-165.0,0.00037973,30]
[393506009,1762739432732,-634.29,0.00037975,30]
[393506010,1762739432741,-634.29,0.00037975,30]
[393506011,1762739432751,-634.29,0.00037975,30]
[393506012,1762739432760,-634.29,0.00037975,30]
[393506013,1762739432770,-465.0,0.00038087,20]
[393506014,1762739432780,-634.29,0.00038249,30]
[393506016,1762739432790,-634.29,0.00038249,30]
[393506018,1762739432799,-1000.0,0.00038258,2]
[393506020,1762739432809,-292.64,0.00038301,2]
[393506021,1762739432819,-1230.35,0.00038438,2]
[393506022,1762739432829,-289.42,0.00038438,2]
[393506023,1762739432839,-150.49,0.00038438,2]
[393506024,1762739432848,-300.46,0.00038438,2]
[393506025,1762739432858,-552.54,0.00038438,2]
[393506026,1762739432867,-300.61,0.00038438,2]
[393506027,1762739432877,-150.0,0.00038438,2]
[393506028,1762739432887,-150.0,0.00038438,2]
[393506029,1762739432898,-549.49,0.00038438,2]
[393506030,1762739432909,-151.04,0.00038438,2]
[393506031,1762739432918,-549.49,0.00038438,2]
[393506032,1762739432928,-29030.7644,0.00038454,2]
[393506033,1762739432938,-465.0,0.00038479,20]
[393506034,1762739432948,-634.29,0.00038523,30]
[393506035,1762739432958,-634.29,0.00038523,30]
[393506036,1762739432969,-731.21365788,0.00038711,2]
[393506037,1762739432978,-634.29,0.00038797,30]
[393506038,1762739432987,-634.29,0.00038797,30]
[393506039,1762739432997,-465.0,0.00038872,20]
[393506040,1762739433007,-245.00999689,0.00038915,2]
[393506041,1762739433017,-245.0099968,0.00038943,2]
[393506042,1762739433027,-1000.0,0.0003897,2]
[393506043,1762739433046,-245.0099968,0.00038972,2]
[393506044,1762739433056,-200.0,0.00038975,20]
[393506045,1762739433065,-162.65807799,0.00038994,7]
[393506046,1762739433075,-1624.606195,0.00039,120]
[393506047,1762739433086,-5442.63708701,0.00039,30]
[393506048,1762739433096,-245.0099968,0.00039,2]
[393506049,1762739433106,-200.0,0.00039,120]
[393506050,1762739433115,-168.0,0.00039015,2]
[393506051,1762739433125,-868.0052105,0.00039024,2]
[393506052,1762739433134,-169.0348012,0.00039024,2]
[393506053,1762739433144,-245.0099968,0.00039028,2]
[393506054,1762739433156,-1000.0,0.00039031,7]
[393506055,1762739433166,-150.0,0.00039045,7]
[393506056,1762739433176,-245.0099968,0.00039057,2]
[393506057,1762739433186,-2339.24006373,0.0003907,30]
[393506059,1762739433285,-332.98000038,0.0003907,30]
[393506060,1762739433301,-413.8620027,0.0003907,30]
[393506061,1762739433312,-3135.80774624,0.0003907,30]
[393506062,1762739433367,500.0,0.0003927,120]
[393506063,1762739433422,500.0,0.0003927,120]
[393506065,1762739433625,500.0,0.0003927,120]
[393506066,1762739433869,500.0,0.0003927,120]
[393506070,1762739437683,500.0,0.0003927,120]
[393506072,1762739437918,500.0,0.0003927,120]
[393506074,1762739438071,157.90942728,0.0003927,120]
[393506076,1762739438150,500.0,0.0003927,120]
[393506078,1762739438190,-395.02432786,0.0003907,30]
[393506079,1762739438247,-3518.75737217,0.0003907,30]
[393506080,1762739438301,-1733.86308309,0.0003907,30]
[393506081,1762739438313,-12877.44951061,0.0003907,30]
[393506082,1762739438355,-450.58499,0.0003907,30]
[393506083,1762739438408,500.0,0.0003927,120]
[393506084,1762739438426,-7585.61700332,0.0003907,30]
[393506085,1762739438437,-944.96660644,0.0003907,30]
[393506086,1762739438449,-342.16705211,0.0003907,30]
[393506087,1762739438461,-2365.07605108,0.0003907,30]
[393506088,1762739438472,-17999.6,0.0003907,30]
[393506089,1762739438488,-825.20478151,0.0003907,30]
[393506090,1762739438499,-3258.00761071,0.0003907,30]
[393506091,1762739438510,-634.29,0.00039071,30]
[393506092,1762739438520,-634.29,0.00039071,30]
[393506093,1762739438531,-345.54244,0.0003908,2]
[393506094,1762739438541,-245.0099968,0.00039085,2]
[393506095,1762739438552,-5000.0,0.00039096,2]
[393506096,1762739438563,-5000.0,0.00039096,2]
[393506098,1762739438573,-5000.0,0.00039096,2]
[393506100,1762739438582,-5000.0,0.00039096,2]
[393506101,1762739438594,-245.0099968,0.00039113,2]
[393506104,1762739438604,-990.41545951,0.00039117,7]
[393506106,1762739438618,-245.0099968,0.00039142,2]
[393506108,1762739438629,-5000.0,0.0003917,30]
[393506110,1762739438638,-245.0099968,0.0003917,2]
[393506112,1762739438648,-4879.24478492,0.0003917,2]
[393506114,1762739438658,-1166.28563719,0.0003917,11]
[393506116,1762739438668,-207.43051688,0.00039191,7]
[393506118,1762739438677,-215.11666163,0.000392,120]
[393506121,1762739438688,-502.96790112,0.00039226,2]
[393506122,1762739438697,-163.0,0.00039233,120]
[393506125,1762739438707,-25129.7369798,0.0003926,4]
[393506126,1762739438717,-150.0,0.0003926,7]
[393506127,1762739438727,-150.0,0.0003926,7]
[393506128,1762739438738,-150.0,0.0003926,7]
[393506129,1762739438748,-150.0,0.0003926,7]
[393506130,1762739438758,-150.0,0.0003926,7]
[393506131,1762739438767,-151.47966786,0.0003926,7]
[393506132,1762739438777,-150.0,0.0003926,7]
[393506133,1762739438788,-150.0,0.0003926,7]
[393506134,1762739438798,-150.0,0.0003926,7]
[393506135,1762739438807,-150.0,0.0003926,7]
[393506136,1762739438818,-150.0,0.0003926,7]
[393506137,1762739438827,-150.0,0.00039263,7]
[393506138,1762739438839,-150.0,0.00039263,7]
[393506139,1762739438849,-150.0,0.00039265,7]
[393506140,1762739438859,-465.0,0.00039265,20]
[393506141,1762739438869,-500.0,0.00039265,120]
[393506142,1762739438879,-162.88369193,0.00039265,60]
[393506143,1762739438890,-212.10169917,0.00039265,60]
[393506144,1762739438900,-500.0,0.00039265,60]
[393506145,1762739438910,-158.54284598,0.00039265,60]
[393506146,1762739438920,-500.0,0.00039265,7]
[393506147,1762739438929,-501.89874428,0.00039265,30]
[393506148,1762739438940,-202.64169683,0.00039265,7]
[393506149,1762739438949,-150.0,0.00039265,60]
[393506150,1762739438959,-150.0,0.00039265,2]
[393506151,1762739438969,-150.0,0.00039265,7]
[393506152,1762739438979,-150.0,0.00039265,7]
[393506153,1762739438988,-150.0,0.00039265,7]
[393506154,1762739438997,-150.0,0.00039265,7]
[393506155,1762739439020,-300.0,0.00039266,10]
[393506156,1762739439030,-300.0,0.00039266,10]
[393506157,1762739439040,-300.0,0.00039266,10]
[393506158,1762739439049,-300.0,0.00039266,10]
[393506159,1762739439059,-300.0,0.00039266,10]
[393506160,1762739439070,-300.0,0.00039266,10]
[393506161,1762739439079,-300.0,0.00039266,10]
[393506162,1762739439089,-300.0,0.00039266,10]
[393506163,1762739439099,-300.0,0.00039266,10]
[393506164,1762739439109,-300.0,0.00039266,10]
[393506165,1762739439118,-300.0,0.00039266,10]
[393506166,1762739439128,-300.0,0.00039266,10]
[393506167,1762739439138,-314.50635683,0.00039266,10]
[393506168,1762739439148,-423.7132011,0.00039266,10]
[393506169,1762739439163,-150.0,0.00039266,7]
[393506170,1762739439172,-150.0,0.00039266,7]
[393506171,1762739439182,-3999.89389609,0.00039266,2]
[393506172,1762739439195,-643.81878653,0.00039266,2]
[393506174,1762739439250,500.0,0.0003927,120]
[393506175,1762739439306,177.12706138,0.0003927,120]
[393506176,1762739439360,500.0,0.0003927,120]
[393506178,1762739439646,500.0,0.0003927,120]
[393506179,1762739439705,500.0,0.0003927,120]
[393506180,1762739439758,331.29831087,0.0003927,120]
[393506201,1762739442971,566.23159776,0.0003927,120]
[393506207,1762739443638,-492.88692891,0.00039266,2]
[393506208,1762739443650,-3645.60000003,0.00039266,2]
[393506209,1762739443678,-3002.60582213,0.00039266,2]
[393506210,1762739443689,-151.0,0.00039267,120]
[393506211,1762739443698,-151.0,0.00039267,120]
[393506212,1762739443708,-49295.99434249,0.00039267,28]
[393506213,1762739443718,-150.0,0.00039268,7]
[393506214,1762739443727,-150.0,0.00039268,7]
[393506215,1762739443737,-150.0,0.00039269,7]
[393506216,1762739443748,-500.0,0.00039269,120]
[393506217,1762739443758,-500.0,0.00039269,120]
[393506218,1762739443768,-500.0,0.00039269,120]
[393506219,1762739443778,-500.0,0.00039269,120]
[393506220,1762739443788,-260.10326545,0.00039269,120]
[393506221,1762739443798,-150.97772186,0.00039269,20]
[393506222,1762739443808,-187.54963629,0.00039269,120]
[393506223,1762739443818,-500.0,0.00039269,7]
[393506224,1762739443828,-500.0,0.00039269,7]
[393506225,1762739443839,-500.0,0.00039269,7]
[393506226,1762739443849,-500.0,0.00039269,7]